fUST/lending_fUST_20260113
["ID","MTS","AMOUNT","RATE_DAILY","PERIOD"]
[401501341,1768275045693,-13546.7822871,0.00014695,2]
[401501342,1768275045704,-900.0,0.00014768,2]
[401501343,1768275045714,-681.87427163,0.00014795,2]
[401501344,1768275045723,-1500.0,0.00014795,2]
[401501345,1768275045733,-376.52158361,0.00014795,2]
[401501346,1768275045744,-1500.0,0.00014795,2]
[401501348,1768275045755,-1500.0,0.00014795,2]
[401501351,1768275045766,-581.99785622,0.00014795,2]
[401501352,1768275045777,-519.09692403,0.00014795,2]
[401501353,1768275045788,-501.7784378,0.00014795,2]
[401501354,1768275045800,-501.76089919,0.00014795,2]
[401501355,1768275045810,-1002.1345303,0.00014795,2]
[401501356,1768275045820,-503.34955278,0.00014795,2]
[401501357,1768275045830,-1501.00555591,0.00014795,2]
[401501358,1768275045839,-1500.0,0.00014795,2]
[401501359,1768275045849,-1500.0,0.00014795,2]
[401501360,1768275045858,-1502.20465258,0.00014795,2]
[401501361,1768275045867,-1500.0,0.00014795,2]
[401501362,1768275045877,-515.39393281,0.00014795,2]
[401501363,1768275045886,-1500.0,0.00014795,2]
[401501364,1768275045895,-500.82770785,0.00014795,2]
[401501365,1768275045906,-659.52004617,0.00014795,2]
[401501366,1768275045920,-1075.12204215,0.00014795,2]
[401501367,1768275045930,-353.74245848,0.00014795,2]
[401501368,1768275045940,-1030.89644029,0.00014795,2]
[401501369,1768275045950,-501.76864642,0.00014795,2]
[401501370,1768275045961,-1501.39827134,0.00014795,2]
[401501371,1768275045971,-501.51524578,0.00014795,2]
[401501372,1768275045981,-1001.34442003,0.00014795,2]
[401501373,1768275045992,-1500.98173226,0.00014795,2]
[401501374,1768275046001,-1500.0,0.00014795,2]
[401501375,1768275046011,-1500.0,0.00014795,2]
[401501376,1768275046020,-1500.0,0.00014795,2]
[401501377,1768275046030,-1500.0,0.00014795,2]
[401501378,1768275046039,-1500.89243734,0.00014795,2]
[401501379,1768275046048,-1501.33228537,0.00014795,2]
[401501380,1768275046058,-1500.0,0.00014795,2]
[401501381,1768275046068,-503.58667602,0.00014795,2]
[401501382,1768275046078,-1500.0,0.00014795,2]
[401501383,1768275046087,-1500.0,0.00014795,2]
[401501384,1768275046097,-1001.45370552,0.00014795,2]
[401501385,1768275046107,-1176.50390204,0.00014795,2]
[401501386,1768275046117,-1500.0,0.00014795,2]
[401501387,1768275046126,-1500.0,0.00014795,2]
[401501388,1768275046136,-500.93199732,0.00014795,2]
[401501389,1768275046145,-1501.63615745,0.00014795,2]
[401501390,1768275046155,-711.54421666,0.00014795,2]
[401501391,1768275046164,-1002.6632099,0.00014795,2]
[401501392,1768275046174,-965.26033505,0.00014795,2]
[401501393,1768275046184,-1510.88603555,0.00014795,2]
[401501394,1768275046194,-1501.05825586,0.00014795,2]
[401501395,1768275046203,-1500.0,0.00014795,2]
[401501396,1768275046213,-250.0,0.00014828,2]
[401501397,1768275046225,-2000.0,0.00014916,2]
[401501398,1768275046235,-501.00821416,0.00014916,2]
[401501399,1768275046245,-2000.0,0.00014916,2]
[401501400,1768275046256,-1970.27420787,0.00014916,2]
[401501401,1768275046266,-155.72124395,0.00014916,2]
[401501402,1768275046277,-501.3821036,0.00014916,2]
[401501403,1768275046287,-500.0,0.00014916,2]
[401501404,1768275046297,-2000.0,0.00014916,2]
[401501405,1768275046307,-2000.0,0.00014916,2]
[401501406,1768275046317,-2000.0,0.00014916,2]
[401501407,1768275046328,-2000.0,0.00014916,2]
[401501408,1768275046338,-2000.0,0.00014916,2]
[401501409,1768275046348,-2000.0,0.00014916,2]
[401501410,1768275046358,-2000.0,0.00014916,2]
[401501411,1768275046367,-2000.0,0.00014916,2]
[401501412,1768275046376,-505.18431124,0.00014916,2]
[401501413,1768275046386,-1115.07532372,0.00014916,2]
[401501414,1768275046395,-2000.0,0.00014916,2]
[401501415,1768275046405,-823.0,0.00014929,2]
[401501416,1768275046414,-3292.0,0.00014986,2]
[401501417,1768275046424,-510.8,0.00015,2]
[401501418,1768275046433,-163.0,0.00015,2]
[401501419,1768275046443,-166.080394,0.00015068,2]
[401501420,1768275046453,-489.57622826,0.00015224,2]
[401501421,1768275046463,-1200.0,0.00015316,2]
[401501422,1768275046472,-1533.63812181,0.00015342,2]
[401501423,1768275046482,-1502.09397869,0.00015342,2]
[401501424,1768275046491,-1005.30561359,0.00015342,2]
[401501425,1768275046501,-502.48937486,0.00015342,2]
[401501426,1768275046511,-1238.79879177,0.00015342,2]
[401501427,1768275046606,-2005.80264245,0.00015342,2]
[401501428,1768275046615,-502.42471218,0.00015342,2]
[401501429,1768275046625,-2000.0,0.00015342,2]
[401501430,1768275046635,-2013.53963427,0.00015342,2]
[401501431,1768275046644,-2000.0,0.00015342,2]
[401501432,1768275046656,-1001.48921188,0.00015342,2]
[401501433,1768275046667,-2027.84000919,0.00015342,2]
[401501434,1768275046677,-502.44620429,0.00015342,2]
[401501435,1768275046687,-501.91487718,0.00015342,2]
[401501436,1768275046696,-508.65480008,0.00015342,2]
[401501437,1768275046706,-506.46904603,0.00015342,2]
[401501438,1768275046715,-376.21269073,0.00015464,2]
[401501439,1768275046724,-1506.16532627,0.00015464,2]
[401501440,1768275046733,-1509.74392023,0.00015464,2]
[401501441,1768275046743,-1003.70557583,0.00015464,2]
[401501442,1768275046752,-2530.20136815,0.00015464,2]
[401501443,1768275046761,-1003.04077884,0.00015464,2]
[401501444,1768275046771,-2500.0,0.00015464,2]
[401501445,1768275046781,-2500.0,0.00015464,2]
[401501446,1768275046790,-2500.0,0.00015464,2]
[401501447,1768275046799,-2500.0,0.00015464,2]
[401501448,1768275046808,-2500.0,0.00015464,2]
[401501449,1768275046818,-2772.98121172,0.00015523,2]
[401501450,1768275046828,-1000.0,0.00015611,2]
[401501451,1768275046838,-2772.98121172,0.00015785,2]
[401501452,1768275046847,-606.75769209,0.00015864,2]
[401501453,1768275046858,-1002.43140219,0.0001589,2]
[401501454,1768275046868,-2500.0,0.0001589,2]
[401501455,1768275046879,-229.07764705,0.00015949,7]
[401501456,1768275046890,-3000.0,0.00016012,2]
[401501457,1768275046901,-1011.99862937,0.00016012,2]
[401501458,1768275046914,-2508.86997518,0.00016012,2]
[401501459,1768275046924,-3000.0,0.00016012,2]
[401501460,1768275046934,-3000.0,0.00016012,2]
[401501461,1768275046943,-2772.98121172,0.0001608,2]
[401501462,1768275046954,-160.0,0.00016175,2]
[401501463,1768275046963,-1041.66666667,0.00016175,2]
[401501464,1768275046972,-2772.98121172,0.00016362,2]
[401501465,1768275046984,-1152.0,0.00016401,2]
[401501466,1768275046994,-157.0,0.00016438,2]
[401501467,1768275047003,-200.0,0.00016438,2]
[401501468,1768275047013,-154.96969157,0.00016438,2]
[401501469,1768275047023,-3000.0,0.00016438,2]
[401501470,1768275047033,-280.47000726,0.00016473,2]
[401501471,1768275047042,-1957.0,0.00016484,2]
[401501472,1768275047052,-3500.0,0.0001656,2]
[401501473,1768275047061,-1041.72224603,0.0001656,2]
[401501474,1768275047071,-1017.4814694,0.0001656,2]
[401501475,1768275047081,-2772.98121172,0.0001662,2]
[401501476,1768275047091,-2772.98121172,0.00016893,2]
[401501477,1768275047101,-157.0,0.00016944,2]
[401501478,1768275047111,-3500.0,0.00016986,2]
[401501479,1768275047122,-16019.39255879,0.00017,2]
[401501480,1768275047132,-81773.60748654,0.0001701,3]
[401501481,1768275047143,-286474.18063682,0.000171,2]
[401501482,1768275047287,-2000.0,0.000171,2]
[401501483,1768275047305,-1529.6842648,0.000171,2]
[401501484,1768275047318,-2245416.46371549,0.000171,2]
[401501485,1768275047327,-2521.02034602,0.00017108,2]
[401501486,1768275047337,-13546.78228703,0.0001713,2]
[401501487,1768275047347,-2772.98121172,0.00017157,2]
[401501488,1768275047357,-1000.0,0.00017172,2]
[401501489,1768275047367,-244.0,0.00017172,2]
[401501490,1768275047377,-554.373082,0.00017224,2]
[401501491,1768275047387,-2772.98121172,0.0001737,2]
[401501492,1768275047397,-5042.42626027,0.00017412,2]
[401501493,1768275047407,-180.64778451,0.00017443,2]
[401501494,1768275047417,-157.0,0.00017449,2]
[401501495,1768275047427,-400.0,0.00017534,2]
[401501496,1768275047437,-4000.0,0.00017534,2]
[401501497,1768275047449,-1505.87364752,0.0001773,2]
[401501498,1768275047626,-1332.895,0.0001773,2]
[401501499,1768275048223,-100.30904973,0.0001773,2]
[401501500,1768275048582,-4876.75477385,0.0001773,2]
[401501501,1768275048592,-2772.98121172,0.00017746,2]
[401501502,1768275048601,-157.0,0.00017955,2]
[401501503,1768275048612,-36588.34139528,0.00018,2]
[401501504,1768275048623,-32531.75040967,0.00018,2]
[401501505,1768275048638,-1566.44270052,0.00018,2]
[401501506,1768275135033,505.79,0.00030136,120]
[401501507,1768275139376,553.49,0.00030136,120]
[401501508,1768275144792,465.77845754,0.00030136,120]
[401501509,1768275152753,500.0,0.00030136,120]
[401501510,1768275153037,344.08170447,0.00030136,120]
[401501511,1768275169639,500.0,0.00030136,120]
[401501512,1768275169924,500.0,0.00030136,120]
[401501513,1768275170225,500.0,0.00030136,120]
[401501514,1768275170695,500.0,0.00030136,120]
[401501515,1768275170992,437.17,0.00030136,120]
[401501516,1768275175646,615.81,0.00030136,120]
[401501517,1768275184069,591.39443661,0.00030136,120]
[401501518,1768275201469,500.0,0.00030136,120]
[401501519,1768275201756,500.0,0.00030136,120]
[401501520,1768275202061,500.0,0.00030136,120]
[401501521,1768275203430,500.0,0.00030136,120]
[401501522,1768275203684,500.0,0.00030136,120]
[401501523,1768275203846,500.0,0.00030136,120]
[401501524,1768275204006,500.0,0.00030136,120]
[401501525,1768275204141,274.27,0.00030136,120]
[401501526,1768275204253,500.0,0.00030136,120]
[401501527,1768275204529,500.0,0.00030136,120]
[401501528,1768275204814,500.0,0.00030136,120]
[401501529,1768275205080,378.90088758,0.00030136,120]
[401501530,1768275222949,500.0,0.00030136,120]
[401501531,1768275223229,500.0,0.00030136,120]
[401501532,1768275223495,500.0,0.00030136,120]
[401501533,1768275223801,500.0,0.00030136,120]
[401501534,1768275224061,500.0,0.00030136,120]
[401501535,1768275224298,452.72233103,0.00030136,120]
[401501536,1768275225696,-300.0,0.00011259,2]
[401501537,1768275225720,-700.0,0.0001126,2]
[401501538,1768275227187,-1000.0,0.0001126,2]
[401501539,1768275227544,-1000.0,0.0001126,2]
[401501540,1768275227603,500.0,0.00030136,120]
[401501541,1768275227842,500.0,0.00030136,120]
[401501542,1768275227869,-1000.0,0.0001126,2]
[401501543,1768275228243,500.0,0.00030136,120]
[401501544,1768275228271,-1000.0,0.0001126,2]
[401501545,1768275228508,500.0,0.00030136,120]
[401501546,1768275228538,-1000.0,0.0001126,2]
[401501547,1768275228798,500.0,0.00030136,120]
[401501548,1768275228884,-1000.0,0.0001126,2]
[401501549,1768275229093,500.0,0.00030136,120]
[401501550,1768275229205,-1000.0,0.0001126,2]
[401501551,1768275229351,500.0,0.00030136,120]
[401501552,1768275229545,-1000.0,0.0001126,2]
[401501553,1768275229596,500.0,0.00030136,120]
[401501554,1768275229890,-1000.0,0.0001126,2]
[401501555,1768275229948,500.0,0.00030136,120]
[401501556,1768275230234,500.0,0.00030136,120]
[401501557,1768275230264,-1000.0,0.0001126,2]
[401501558,1768275230514,500.0,0.00030136,120]
[401501559,1768275230585,-1000.0,0.0001126,2]
[401501560,1768275230761,500.0,0.00030136,120]
[401501561,1768275230978,-1000.0,0.0001126,2]
[401501562,1768275231225,500.0,0.00030136,120]
[401501563,1768275231328,-1000.0,0.0001126,2]
[401501564,1768275231563,549.54077871,0.00030136,120]
[401501565,1768275231647,-1000.0,0.0001126,2]
[401501566,1768275232021,-1000.0,0.0001126,2]
[401501567,1768275233663,-1000.0,0.0001126,2]
[401501568,1768275234818,-1000.0,0.0001126,2]
[401501569,1768275235658,-1000.0,0.0001126,2]
[401501570,1768275236698,-1000.0,0.0001126,2]
[401501571,1768275238024,-1000.0,0.0001126,2]
[401501572,1768275239263,-1000.0,0.0001126,2]
[401501573,1768275240695,-1000.0,0.0001126,2]
[401501574,1768275240731,500.0,0.00030136,120]
[401501575,1768275245766,-300.0,0.00011259,2]
[401501576,1768275245791,-600.0,0.0001126,2]
[401501577,1768275253412,500.0,0.00030136,120]
[401501578,1768275253700,500.0,0.00030136,120]
[401501579,1768275253972,500.0,0.00030136,120]
[401501580,1768275254236,500.0,0.00030136,120]
[401501581,1768275254475,500.0,0.00030136,120]
[401501582,1768275254742,569.28,0.00030136,120]
[401501583,1768275260447,500.0,0.00030136,120]
[401501584,1768275261566,500.0,0.00030136,120]
[401501585,1768275261908,500.0,0.00030136,120]
[401501586,1768275262160,500.0,0.00030136,120]
[401501587,1768275262470,500.0,0.00030136,120]
[401501588,1768275262752,500.0,0.00030136,120]
[401501589,1768275263026,648.81960816,0.00030136,120]
[401501590,1768275273796,644.1031383,0.00030136,120]
[401501591,1768275331751,-300.0,0.00011259,2]
[401501592,1768275398770,500.0,0.00030136,120]
[401501593,1768275399037,269.0069932,0.00030136,120]
[401501594,1768275442347,500.0,0.00030136,120]
[401501595,1768275442596,500.0,0.00030136,120]
[401501596,1768275442863,580.13523642,0.00030136,120]
[401501597,1768275529916,516.66133556,0.00030136,120]
[401501598,1768275584415,514.77035322,0.00030136,120]
[401501600,1768275606457,500.0,0.00030136,120]
[401501601,1768275606705,500.0,0.00030136,120]
[401501602,1768275607010,551.62466008,0.00030136,120]
[401501603,1768275612407,523.90075773,0.00030136,120]
[401501607,1768275636982,500.0,0.00030136,120]
[401501608,1768275637416,283.04389827,0.00030136,120]
[401501609,1768275669997,-153.59,9.99e-05,2]
[401501610,1768275670019,-560.0,9.99e-05,2]
[401501611,1768275670038,-340.17997659,0.00010624,2]
[401501612,1768275686605,286.021422,0.00030136,120]
[401501613,1768275723979,513.44544165,0.00030136,120]
[401501614,1768275737645,-151.0,0.00011258,2]
[401501615,1768275880854,1100.0,0.00030137,120]
[401501616,1768275901123,692.56807736,0.00030137,120]
[401501617,1768275955850,500.0,0.00030136,120]
[401501618,1768275956123,568.78493382,0.00030136,120]
[401501629,1768276232077,-300.0,0.00011158,2]
[401501631,1768276232086,-577.0,0.00011158,2]
[401501633,1768276232095,-16090.94512278,0.00011159,2]
[401501637,1768276232129,-1002.31568725,0.00011159,2]
[401501701,1768276238207,-499.39930101,0.00011158,2]
[401501702,1768276238220,-500.0,0.00011158,2]
[401501703,1768276238231,-500.0,0.00011158,2]
[401501704,1768276238243,-500.0,0.00011158,2]
[401501705,1768276238254,-500.0,0.00011158,2]
[401501706,1768276238265,-476.20360232,0.00011158,2]
[401501707,1768276238282,-500.0,0.00011158,2]
[401501708,1768276238294,-500.0,0.00011158,2]
[401501709,1768276238305,-500.0,0.00011158,2]
[401501710,1768276238316,-500.0,0.00011158,2]
[401501711,1768276238328,-14941.85841567,0.00011159,2]
[401501712,1768276238356,-139133.99893726,0.00011159,2]
[401501713,1768276238411,-1732.35586885,0.00011159,2]
[401501779,1768276240574,-89.08200485,0.00011159,2]
[401502085,1768276245957,-500.0,0.00011158,2]
[401502086,1768276245967,-500.0,0.00011158,2]
[401502087,1768276245976,-500.0,0.00011158,2]
[401502088,1768276245985,-500.0,0.00011158,2]
[401502089,1768276245994,-192.13467302,0.00011158,2]
[401502090,1768276246003,-453.32159345,0.00011158,2]
[401502091,1768276246012,-500.0,0.00011158,2]
[401502092,1768276246021,-500.0,0.00011158,2]
[401502093,1768276246029,-500.0,0.00011158,2]
[401502094,1768276246038,-500.0,0.00011158,2]
[401502095,1768276246047,-516.36095267,0.00011158,2]
[401502096,1768276246056,-500.0,0.00011158,2]
[401502097,1768276246065,-500.0,0.00011158,2]
[401502098,1768276246074,-500.0,0.00011158,2]
[401502099,1768276246083,-211.32838086,0.00011158,2]
[401502100,1768276246092,-500.0,0.00011158,2]
[401502101,1768276246100,-500.0,0.00011158,2]
[401502102,1768276246109,-500.0,0.00011158,2]
[401502103,1768276246118,-500.0,0.00011158,2]
[401502104,1768276246127,-500.0,0.00011158,2]
[401502105,1768276246136,-276.25095637,0.00011158,2]
[401502106,1768276246144,-500.0,0.00011158,2]
[401502107,1768276246153,-500.0,0.00011158,2]
[401502108,1768276246162,-500.0,0.00011158,2]
[401502109,1768276246171,-500.0,0.00011158,2]
[401502110,1768276246180,-500.0,0.00011158,2]
[401502111,1768276246189,-500.0,0.00011158,2]
[401502112,1768276246198,-500.0,0.00011158,2]
[401502113,1768276246207,-500.0,0.00011158,2]
[401502114,1768276246216,-500.0,0.00011158,2]
[401502115,1768276246225,-281.77017911,0.00011158,2]
[401502116,1768276246233,-10624.06243581,0.00011159,2]
[401502117,1768276246244,-15997.00520424,0.00011159,2]
[401502118,1768276246268,-27514.15693864,0.00011159,2]
[401502181,1768276286372,500.0,0.00030136,120]
[401502182,1768276286642,500.0,0.00030136,120]
[401502183,1768276286926,500.0,0.00030136,120]
[401502184,1768276287179,500.0,0.00030136,120]
[401502185,1768276287466,186.52800582,0.00030136,120]
[401502186,1768276288835,302.35443991,0.00030136,120]
[401502187,1768276413527,189.63,0.00030136,120]
[401502188,1768276456392,1100.0,0.00030137,120]
[401502189,1768276460871,500.0,0.00030136,120]
[401502190,1768276477263,500.0,0.00030136,120]
[401502191,1768276477530,500.0,0.00030136,120]
[401502192,1768276499548,54353.23165663,0.00030137,120]
[401502193,1768276576598,-178.686,0.00010936,2]
[401502194,1768276576623,-333.37637706,0.00010947,2]
[401502195,1768276576647,-999.0,0.00010959,2]
[401502196,1768276576671,-155.34320915,0.00011108,2]
[401502197,1768276576695,-300.0,0.00011157,2]
[401502198,1768276576719,-49488.90202871,0.00011158,2]
[401502199,1768276576744,-500.0,0.00011158,2]
[401502200,1768276576768,-500.0,0.00011158,2]
[401502201,1768276576792,-500.0,0.00011158,2]
[401502202,1768276576817,-500.0,0.00011158,2]
[401502203,1768276576842,-500.0,0.00011158,2]
[401502204,1768276576867,-234.44098891,0.00011158,2]
[401502205,1768276576891,-500.0,0.00011158,2]
[401502206,1768276576915,-500.0,0.00011158,2]
[401502207,1768276576937,-505.02772207,0.00011158,2]
[401502208,1768276576962,-500.0,0.00011158,2]
[401502209,1768276576986,-500.0,0.00011158,2]
[401502210,1768276577009,-500.0,0.00011158,2]
[401502211,1768276577032,-300.0,0.00011158,2]
[401502212,1768276577057,-500.0,0.00011158,2]
[401502213,1768276577082,-200.0,0.00011158,2]
[401502214,1768276577106,-500.0,0.00011158,2]
[401502215,1768276577130,-500.0,0.00011158,2]
[401502216,1768276577154,-500.0,0.00011158,2]
[401502217,1768276577179,-500.0,0.00011158,2]
[401502218,1768276577205,-486.51860513,0.00011158,2]
[401502219,1768276577230,-500.0,0.00011158,2]
[401502220,1768276577254,-500.0,0.00011158,2]
[401502221,1768276577279,-500.0,0.00011158,2]
[401502222,1768276577305,-500.0,0.00011158,2]
[401502223,1768276577331,-500.0,0.00011158,2]
[401502224,1768276577357,-155.93272251,0.00011158,2]
[401502225,1768276577388,-555662.77234646,0.00011159,2]
[401502226,1768276773212,290.0,0.00030136,120]
[401502227,1768276809607,500.0,0.00030136,120]
[401502228,1768276809860,500.0,0.00030136,120]
[401502229,1768276810128,343.82,0.00030136,120]
[401502231,1768276858280,500.0,0.00030136,120]
[401502232,1768276858507,615.82611851,0.00030136,120]
[401502233,1768276924845,474.22,0.00030137,120]
[401502234,1768277132602,500.0,0.00030136,120]
[401502235,1768277132875,500.0,0.00030136,120]
[401502236,1768277133174,581.29392384,0.00030136,120]
[401502237,1768277184762,500.0,0.00030136,120]
[401502238,1768277185028,500.0,0.00030136,120]
[401502239,1768277185288,370.75611074,0.00030136,120]
[401502240,1768277233045,288.46938728,0.00023829,120]
[401502293,1768277284344,-155.0,0.0001,2]
[401502294,1768277284364,-845.0,0.00010239,2]
[401502295,1768277286416,-1000.0,0.00010239,2]
[401502296,1768277286871,-1000.0,0.00010239,2]
[401502297,1768277287255,-1000.0,0.00010239,2]
[401502298,1768277287568,-1000.0,0.00010239,2]
[401502299,1768277287901,-1000.0,0.00010239,2]
[401502300,1768277288371,-537.6284213,0.00010239,2]
[401502301,1768277305666,-341.05396367,0.00010602,2]
[401502302,1768277322128,-1000.0,0.00011025,2]
[401502303,1768277323841,-1000.0,0.00011025,2]
[401502304,1768277324064,-924.92751597,0.00011025,2]
[401502305,1768277324084,-75.07248403,0.00011057,2]
[401502306,1768277324432,-224.92751597,0.00011057,2]
[401502307,1768277324456,-775.07248403,0.00011059,2]
[401502308,1768277324745,-1000.0,0.00011059,2]
[401502309,1768277325129,-1000.0,0.00011059,2]
[401502310,1768277325417,-1000.0,0.00011059,2]
[401502311,1768277325767,-1000.0,0.00011059,2]
[401502312,1768277326370,-1000.0,0.00011059,2]
[401502313,1768277326581,-1000.0,0.00011059,2]
[401502314,1768277327030,-1000.0,0.00011059,2]
[401502315,1768277327348,-1000.0,0.00011059,2]
[401502316,1768277328948,-1000.0,0.00011059,2]
[401502317,1768277330422,-1000.0,0.00011059,2]
[401502318,1768277332121,-1000.0,0.00011059,2]
[401502319,1768277333284,-1000.0,0.00011059,2]
[401502320,1768277335028,-1000.0,0.00011059,2]
[401502321,1768277340563,-1200.0,0.00011059,2]
[401502322,1768277346996,-300.0,0.00011058,2]
[401502323,1768277347020,-100.0,0.00011059,2]
[401502324,1768277432168,-482.79568097,0.00011058,2]
[401502325,1768277432179,-500.0,0.00011058,2]
[401502326,1768277432189,-500.0,0.00011058,2]
[401502327,1768277432199,-500.0,0.00011058,2]
[401502328,1768277432208,-500.0,0.00011058,2]
[401502329,1768277432218,-500.0,0.00011058,2]
[401502330,1768277432228,-633.34252162,0.00011058,2]
[401502331,1768277432238,-334.52132725,0.00011058,2]
[401502332,1768277432248,-500.0,0.00011058,2]
[401502333,1768277432257,-479.59566141,0.00011058,2]
[401502334,1768277432267,-628.14684372,0.00011058,2]
[401502335,1768277432276,-307.58764269,0.00011058,2]
[401502336,1768277432286,-500.0,0.00011058,2]
[401502337,1768277432295,-300.0,0.00011058,2]
[401502339,1768277432305,-575.0,0.00011058,2]
[401502341,1768277432314,-4271.43647664,0.00011059,2]
[401502427,1768277440735,-21.3490022,0.00011059,2]
[401502430,1768277440751,-1306.50365617,0.00011059,2]
[401502432,1768277440763,-1376.99468657,0.00011059,2]
[401502434,1768277440782,-1719.1591733,0.00011059,2]
[401502761,1768277445406,-589862.37274442,0.00011059,2]
[401502762,1768277445932,-2517.96006472,0.00011059,2]
[401502763,1768277446306,-13073.13777129,0.00011059,2]
[401502765,1768277543999,281.32690591,0.00030136,120]
[401502766,1768277640770,500.0,0.00030136,120]
[401502767,1768277641041,500.0,0.00030136,120]
[401502768,1768277641711,500.0,0.00030136,120]
[401502769,1768277642023,500.0,0.00030136,120]
[401502770,1768277642287,500.0,0.00030136,120]
[401502771,1768277642537,500.0,0.00030136,120]
[401502772,1768277642846,500.0,0.00030136,120]
[401502773,1768277663991,-300.0,0.00011058,2]
[401502774,1768277664017,-338.61052099,0.00011058,2]
[401502775,1768277673785,-370776.01394066,0.00011059,2]
[401502776,1768277754078,542.37851933,0.00011058,2]
[401502777,1768277757045,500.0,0.00011058,2]
[401502778,1768277757096,500.0,0.00011058,2]
[401502779,1768277757134,500.0,0.00011058,2]
[401502780,1768277757185,557.00344708,0.00011058,2]
[401502781,1768277757237,500.0,0.00011058,2]
[401502782,1768277757277,557.00344708,0.00011058,2]
[401502783,1768277757320,500.0,0.00011058,2]
[401502784,1768277757362,557.00344708,0.00011058,2]
[401502785,1768277757403,373.83424654,0.00011058,2]
[401502786,1768277757444,557.00344708,0.00011058,2]
[401502787,1768277757490,500.0,0.00011058,2]
[401502788,1768277757533,557.00344708,0.00011058,2]
[401502789,1768277757674,500.0,0.00011058,2]
[401502790,1768277757717,557.00344708,0.00011058,2]
[401502791,1768277757758,557.00344708,0.00011058,2]
[401502792,1768277757801,557.00344708,0.00011058,2]
[401502793,1768277757838,557.00344708,0.00011058,2]
[401502794,1768277757880,557.00344708,0.00011058,2]
[401502795,1768277757914,557.00344708,0.00011058,2]
[401502796,1768277757960,557.00344708,0.00011058,2]
[401502797,1768277757994,557.00344708,0.00011058,2]
[401502798,1768277758032,500.0,0.00011058,2]
[401502799,1768277758068,557.00344708,0.00011058,2]
[401502800,1768277758109,557.00344708,0.00011058,2]
[401502801,1768277758153,557.00344708,0.00011058,2]
[401502802,1768277758187,557.00344708,0.00011058,2]
[401502803,1768277758224,500.0,0.00011058,2]
[401502804,1768277758257,557.00344708,0.00011058,2]
[401502805,1768277758290,557.00344708,0.00011058,2]
[401502806,1768277758326,557.00344708,0.00011058,2]
[401502807,1768277758359,557.00344708,0.00011058,2]
[401502808,1768277758392,557.00344708,0.00011058,2]
[401502809,1768277758430,557.00344708,0.00011058,2]
[401502810,1768277758463,557.00344708,0.00011058,2]
[401502811,1768277758496,557.00344708,0.00011058,2]
[401502812,1768277758530,557.00344708,0.00011058,2]
[401502813,1768277758564,557.00344708,0.00011058,2]
[401502814,1768277758598,557.00344708,0.00011058,2]
[401502815,1768277758743,557.00344708,0.00011058,2]
[401502816,1768277758778,557.00344708,0.00011058,2]
[401502817,1768277758811,557.00344708,0.00011058,2]
[401502818,1768277758844,557.00344708,0.00011058,2]
[401502819,1768277758880,557.00344708,0.00011058,2]
[401502820,1768277758914,557.00344708,0.00011058,2]
[401502821,1768277758957,557.00344708,0.00011058,2]
[401502822,1768277758993,557.00344708,0.00011058,2]
[401502823,1768277759029,557.00344708,0.00011058,2]
[401502824,1768277759066,557.00344708,0.00011058,2]
[401502825,1768277759101,557.00344708,0.00011058,2]
[401502826,1768277759139,557.00344708,0.00011058,2]
[401502827,1768277759176,557.00344708,0.00011058,2]
[401502828,1768277759210,557.00344708,0.00011058,2]